[Event "Titled Tuesday Blitz November 29 Late 2022"]
[White "chess50years"]
[Black "Kim, Sergey"]
[BlackFideId "13700570"]
[WhiteElo "2177"]
[BlackElo "2592"]
[Result "0-1"]
[Round "10"]
[TimeControl "180+1"]
[Date "2022.11.30"]
[WhiteClock "0:00:02"]
[BlackClock "0:00:33"]

1. d4 {[%clk 0:02:01]}  Nf6 {[%clk 0:02:57]} 2. c4 {[%clk 0:02:01]}  g6 {[%clk 0:02:57]} 3. Nc3 {[%clk 0:02:02]}  Bg7 {[%clk 0:02:58]} 4. e4 {[%clk 0:02:02]}  d6 {[%clk 0:02:59]} 5. Nf3 {[%clk 0:02:02]}  O-O {[%clk 0:02:59]} 6. h3 {[%clk 0:02:02]}  e5 {[%clk 0:03:00]} 7. dxe5 {[%clk 0:02:02]}  dxe5 {[%clk 0:03:00]} 8. Qxd8 {[%clk 0:02:03]}  Rxd8 {[%clk 0:03:00]} 9. Bg5 {[%clk 0:02:03]}  c6 {[%clk 0:03:00]} 10. Be2 {[%clk 0:02:02]}  Na6 {[%clk 0:03:00]} 11. Rd1 {[%clk 0:01:57]}  Re8 {[%clk 0:02:59]} 12. O-O {[%clk 0:01:54]}  Nc5 {[%clk 0:02:58]} 13. Nd2 {[%clk 0:01:54]}  a5 {[%clk 0:02:57]} 14. Be3 {[%clk 0:01:50]}  Bf8 {[%clk 0:02:53]} 15. Nb3 {[%clk 0:01:49]}  Nfd7 {[%clk 0:02:48]} 16. Nxc5 {[%clk 0:01:47]}  Nxc5 {[%clk 0:02:47]} 17. b3 {[%clk 0:01:47]}  a4 {[%clk 0:02:39]} 18. b4 {[%clk 0:01:42]}  Ne6 {[%clk 0:02:39]} 19. c5 {[%clk 0:01:42]}  a3 {[%clk 0:02:28]} 20. Bc4 {[%clk 0:01:40]}  Bg7 {[%clk 0:02:25]} 21. b5 {[%clk 0:01:31]}  Nd4 {[%clk 0:02:23]} 22. bxc6 {[%clk 0:01:26]}  bxc6 {[%clk 0:02:23]} 23. Ne2 {[%clk 0:01:23]}  Ra4 {[%clk 0:02:10]} 24. Bb3 {[%clk 0:01:13]}  Nxb3 {[%clk 0:02:08]} 25. axb3 {[%clk 0:01:14]}  Rb4 {[%clk 0:02:08]} 26. Rd3 {[%clk 0:01:10]}  Be6 {[%clk 0:02:06]} 27. Ra1 {[%clk 0:01:07]}  Ra8 {[%clk 0:02:05]} 28. Nc1 {[%clk 0:01:07]}  f5 {[%clk 0:02:03]} 29. f3 {[%clk 0:01:07]}  fxe4 {[%clk 0:02:01]} 30. fxe4 {[%clk 0:01:07]}  Rxe4 {[%clk 0:02:01]} 31. Kf2 {[%clk 0:01:03]}  Bd5 {[%clk 0:02:00]} 32. b4 {[%clk 0:00:57]}  Rxb4 {[%clk 0:01:58]} 33. Rdxa3 {[%clk 0:00:57]}  Rb2+ {[%clk 0:01:56]} 34. Ke1 {[%clk 0:00:52]}  Rxa3 {[%clk 0:01:55]} 35. Rxa3 {[%clk 0:00:53]}  Rxg2 {[%clk 0:01:50]} 36. Ra8+ {[%clk 0:00:52]}  Kf7 {[%clk 0:01:49]} 37. Ra7+ {[%clk 0:00:48]}  Kf6 {[%clk 0:01:48]} 38. h4 {[%clk 0:00:48]}  h6 {[%clk 0:01:41]} 39. Nd3 {[%clk 0:00:44]}  Rg3 {[%clk 0:01:31]} 40. Kf2 {[%clk 0:00:38]}  Rf3+ {[%clk 0:01:30]} 41. Ke2 {[%clk 0:00:39]}  Rh3 {[%clk 0:01:29]} 42. Nxe5 {[%clk 0:00:36]}  Kxe5 {[%clk 0:01:27]} 43. Rxg7 {[%clk 0:00:35]}  Rxh4 {[%clk 0:01:20]} 44. Rxg6 {[%clk 0:00:35]}  h5 {[%clk 0:01:19]} 45. Rh6 {[%clk 0:00:29]}  Ke4 {[%clk 0:01:16]} 46. Rh8 {[%clk 0:00:24]}  Rh2+ {[%clk 0:01:13]} 47. Bf2 {[%clk 0:00:24]}  Bc4+ {[%clk 0:01:12]} 48. Ke1 {[%clk 0:00:22]}  Rh1+ {[%clk 0:01:08]} 49. Kd2 {[%clk 0:00:21]}  Be6 {[%clk 0:01:07]} 50. Re8 {[%clk 0:00:19]}  Kd5 {[%clk 0:01:05]} 51. Rd8+ {[%clk 0:00:17]}  Ke5 {[%clk 0:01:05]} 52. Re8 {[%clk 0:00:14]}  h4 {[%clk 0:01:04]} 53. Ke3 {[%clk 0:00:09]}  Rh3+ {[%clk 0:00:59]} 54. Kd2 {[%clk 0:00:07]}  Kf5 {[%clk 0:00:58]} 55. Rh8 {[%clk 0:00:06]}  Rh2 {[%clk 0:00:57]} 56. Ke3 {[%clk 0:00:04]}  h3 {[%clk 0:00:58]} 57. Rh5+ {[%clk 0:00:04]}  Kg6 {[%clk 0:00:53]} 58. Rh4 {[%clk 0:00:04]}  Rh1 {[%clk 0:00:52]} 59. Kf4 {[%clk 0:00:03]}  Rf1 {[%clk 0:00:50]} 60. Kg3 {[%clk 0:00:03]}  Rc1 {[%clk 0:00:47]} 61. Kh2 {[%clk 0:00:02]}  Rc2 {[%clk 0:00:46]} 62. Kg3 {[%clk 0:00:02]}  Kf6 {[%clk 0:00:44]} 63. Rh6+ {[%clk 0:00:01]}  Ke5 {[%clk 0:00:44]} 64. Rh5+ {[%clk 0:00:02]}  Ke4 {[%clk 0:00:43]} 65. Rh4+ {[%clk 0:00:02]}  Kd3 {[%clk 0:00:42]} 66. Rd4+ {[%clk 0:00:02]}  Ke2 {[%clk 0:00:41]} 67. Rd6 {[%clk 0:00:03]}  Bd5 {[%clk 0:00:40]} 68. Rh6 {[%clk 0:00:03]}  Kf1 {[%clk 0:00:39]} 69. Be3 {[%clk 0:00:02]}  Rc3 {[%clk 0:00:39]} 70. Kf4 {[%clk 0:00:02]}  Bg2 {[%clk 0:00:36]} 71. Rh4 {[%clk 0:00:01]}  Ke2 {[%clk 0:00:33]} 72. Bd4 {[%clk 0:00:02]}  Rc4 {[%clk 0:00:33]} 73. Ke5 {[%clk 0:00:02]}  Kd3 {[%clk 0:00:33]} 0-1


[Site "https://www.chess.com"]

[Event "Titled Tuesday Blitz November 29 Late 2022"]
[White "Andreassen, Lars"]
[Black "Fareh, Youness"]
[WhiteFideId "1504878"]
[BlackFideId "9000526"]
[WhiteElo "2119"]
[BlackElo "1860"]
[Result "1-0"]
[Round "11"]
[TimeControl "180+1"]
[Date "2022.11.30"]
[WhiteClock "0:00:23"]
[BlackClock "0:00:35"]

1. d4 {[%clk 0:02:59]}  Nf6 {[%clk 0:01:53]} 2. Nf3 {[%clk 0:02:57]}  d5 {[%clk 0:01:51]} 3. Bg5 {[%clk 0:02:57]}  Nbd7 {[%clk 0:01:50]} 4. e3 {[%clk 0:02:57]}  h6 {[%clk 0:01:50]} 5. Bh4 {[%clk 0:02:56]}  e6 {[%clk 0:01:50]} 6. c4 {[%clk 0:02:57]}  Be7 {[%clk 0:01:50]} 7. Nc3 {[%clk 0:02:57]}  O-O {[%clk 0:01:51]} 8. Qc2 {[%clk 0:02:58]}  c6 {[%clk 0:01:51]} 9. Bd3 {[%clk 0:02:58]}  dxc4 {[%clk 0:01:51]} 10. Bxc4 {[%clk 0:02:59]}  b5 {[%clk 0:01:52]} 11. Bd3 {[%clk 0:02:58]}  Bb7 {[%clk 0:01:52]} 12. O-O {[%clk 0:02:58]}  a6 {[%clk 0:01:53]} 13. a3 {[%clk 0:02:55]}  Rc8 {[%clk 0:01:51]} 14. b4 {[%clk 0:02:53]}  Nb6 {[%clk 0:01:46]} 15. e4 {[%clk 0:02:48]}  Nfd7 {[%clk 0:01:32]} 16. Bxe7 {[%clk 0:02:47]}  Qxe7 {[%clk 0:01:33]} 17. Rfe1 {[%clk 0:02:45]}  e5 {[%clk 0:01:30]} 18. h3 {[%clk 0:02:37]}  exd4 {[%clk 0:01:29]} 19. Nxd4 {[%clk 0:02:36]}  Ne5 {[%clk 0:01:29]} 20. Nf5 {[%clk 0:02:35]}  Qf6 {[%clk 0:01:27]} 21. Bf1 {[%clk 0:02:31]}  Nbc4 {[%clk 0:01:23]} 22. f4 {[%clk 0:02:28]}  Ng6 {[%clk 0:01:22]} 23. e5 {[%clk 0:02:22]}  Qe6 {[%clk 0:01:09]} 24. Nd4 {[%clk 0:02:12]}  Qd7 {[%clk 0:01:07]} 25. Rad1 {[%clk 0:02:05]}  Qe7 {[%clk 0:01:00]} 26. f5 {[%clk 0:02:03]}  Ngxe5 {[%clk 0:01:00]} 27. Bxc4 {[%clk 0:01:57]}  bxc4 {[%clk 0:00:59]} 28. Ne4 {[%clk 0:01:37]}  f6 {[%clk 0:00:56]} 29. Nc5 {[%clk 0:01:31]}  Rfd8 {[%clk 0:00:54]} 30. Nde6 {[%clk 0:01:30]}  Rxd1 {[%clk 0:00:53]} 31. Rxd1 {[%clk 0:01:30]}  Nd3 {[%clk 0:00:52]} 32. Nxd3 {[%clk 0:01:27]}  cxd3 {[%clk 0:00:52]} 33. Qxd3 {[%clk 0:01:27]}  c5 {[%clk 0:00:52]} 34. bxc5 {[%clk 0:01:11]}  Bc6 {[%clk 0:00:53]} 35. Qd6 {[%clk 0:01:09]}  Qb7 {[%clk 0:00:50]} 36. Rd2 {[%clk 0:00:59]}  Be4 {[%clk 0:00:50]} 37. Qf4 {[%clk 0:00:52]}  Qb1+ {[%clk 0:00:48]} 38. Kh2 {[%clk 0:00:51]}  Bxf5 {[%clk 0:00:49]} 39. Rd8+ {[%clk 0:00:42]}  Rxd8 {[%clk 0:00:47]} 40. Nxd8 {[%clk 0:00:43]}  Be4 {[%clk 0:00:41]} 41. Ne6 {[%clk 0:00:38]}  Qb2 {[%clk 0:00:40]} 42. Qxe4 {[%clk 0:00:34]}  Qb8+ {[%clk 0:00:38]} 43. Qf4 {[%clk 0:00:29]}  Qc8 {[%clk 0:00:38]} 44. Qd6 {[%clk 0:00:27]}  a5 {[%clk 0:00:35]} 45. Qd8+ {[%clk 0:00:27]}  Qxd8 {[%clk 0:00:35]} 46. Nxd8 {[%clk 0:00:28]}  Kf8 {[%clk 0:00:36]} 47. c6 {[%clk 0:00:27]}  Ke7 {[%clk 0:00:37]} 48. Nb7 {[%clk 0:00:25]}  a4 {[%clk 0:00:36]} 49. Kg3 {[%clk 0:00:24]}  g6 {[%clk 0:00:36]} 50. Kf4 {[%clk 0:00:25]}  Ke6 {[%clk 0:00:37]} 51. g4 {[%clk 0:00:24]}  g5+ {[%clk 0:00:36]} 52. Ke4 {[%clk 0:00:24]}  Ke7 {[%clk 0:00:35]} 53. Kf5 {[%clk 0:00:22]}  Kf7 {[%clk 0:00:35]} 54. c7 {[%clk 0:00:23]} 1-0


[Site "https://www.chess.com"]

[Event "Titled Tuesday Blitz November 29 Late 2022"]
[White "Annaberdiyev, Babageldi"]
[Black "Svane, Frederik"]
[WhiteFideId "14000385"]
[BlackFideId "12923044"]
[WhiteElo "2332"]
[BlackElo "2466"]
[Result "1/2-1/2"]
[Round "11"]
[TimeControl "180+1"]
[Date "2022.11.30"]
[WhiteClock "0:00:43"]
[BlackClock "0:00:02"]

1. e4 {[%clk 0:03:00]}  c5 {[%clk 0:02:59]} 2. Nf3 {[%clk 0:03:00]}  e6 {[%clk 0:02:59]} 3. d3 {[%clk 0:02:58]}  Nc6 {[%clk 0:02:57]} 4. Nbd2 {[%clk 0:02:59]}  d5 {[%clk 0:02:54]} 5. g3 {[%clk 0:03:00]}  Bd6 {[%clk 0:02:54]} 6. Bg2 {[%clk 0:03:00]}  Nge7 {[%clk 0:02:54]} 7. O-O {[%clk 0:02:57]}  O-O {[%clk 0:02:54]} 8. Re1 {[%clk 0:02:55]}  f6 {[%clk 0:02:46]} 9. exd5 {[%clk 0:02:52]}  exd5 {[%clk 0:02:44]} 10. c4 {[%clk 0:02:50]}  d4 {[%clk 0:02:40]} 11. a3 {[%clk 0:02:48]}  a5 {[%clk 0:02:39]} 12. Ne4 {[%clk 0:02:46]}  a4 {[%clk 0:02:37]} 13. Nxd6 {[%clk 0:02:36]}  Qxd6 {[%clk 0:02:36]} 14. Qe2 {[%clk 0:02:31]}  Bg4 {[%clk 0:02:24]} 15. h3 {[%clk 0:02:28]}  Bh5 {[%clk 0:02:09]} 16. Bf4 {[%clk 0:02:27]}  Qd8 {[%clk 0:02:05]} 17. g4 {[%clk 0:02:24]}  Bf7 {[%clk 0:02:05]} 18. Nd2 {[%clk 0:02:21]}  Ng6 {[%clk 0:02:01]} 19. Bg3 {[%clk 0:02:21]}  Re8 {[%clk 0:01:59]} 20. Ne4 {[%clk 0:02:19]}  Na5 {[%clk 0:01:48]} 21. Rad1 {[%clk 0:02:18]}  Ra6 {[%clk 0:01:43]} 22. f4 {[%clk 0:02:12]}  Nb3 {[%clk 0:01:39]} 23. f5 {[%clk 0:02:12]}  Ne5 {[%clk 0:01:37]} 24. Bxe5 {[%clk 0:02:07]}  Rxe5 {[%clk 0:01:36]} 25. Qf3 {[%clk 0:02:08]}  b5 {[%clk 0:01:18]} 26. cxb5 {[%clk 0:02:09]}  Rb6 {[%clk 0:01:18]} 27. g5 {[%clk 0:02:06]}  fxg5 {[%clk 0:01:18]} 28. Nxg5 {[%clk 0:02:01]}  Rxe1+ {[%clk 0:00:13]} 29. Rxe1 {[%clk 0:02:02]}  h6 {[%clk 0:00:13]} 30. Ne4 {[%clk 0:01:54]}  Bd5 {[%clk 0:00:07]} 31. Nf6+ {[%clk 0:01:48]}  Qxf6 {[%clk 0:00:02]} 32. Qxd5+ {[%clk 0:01:49]}  Kh7 {[%clk 0:00:02]} 33. Re8 {[%clk 0:01:44]}  h5 {[%clk 0:00:02]} 34. Re6 {[%clk 0:01:28]}  Rxe6 {[%clk 0:00:02]} 35. fxe6 {[%clk 0:01:29]}  Nd2 {[%clk 0:00:03]} 36. Qxh5+ {[%clk 0:01:28]}  Kg8 {[%clk 0:00:03]} 37. Qe8+ {[%clk 0:01:08]}  Kh7 {[%clk 0:00:03]} 38. e7 {[%clk 0:01:05]}  Qe5 {[%clk 0:00:02]} 39. Qf7 {[%clk 0:01:01]}  Qe1+ {[%clk 0:00:02]} 40. Kh2 {[%clk 0:00:50]}  Qe5+ {[%clk 0:00:02]} 41. Kg1 {[%clk 0:00:50]}  Qe1+ {[%clk 0:00:02]} 42. Kh2 {[%clk 0:00:45]}  Qe5+ {[%clk 0:00:02]} 43. Kg1 {[%clk 0:00:43]} 1/2-1/2


[Site "https://www.chess.com"]

[Event "Titled Tuesday Blitz November 29 Late 2022"]
[White "Arkell, Keith C"]
[Black "Wirig, Anthony"]
[WhiteFideId "400270"]
[BlackFideId "615013"]
[WhiteElo "2342"]
[BlackElo "2487"]
[Result "0-1"]
[Round "11"]
[TimeControl "180+1"]
[Date "2022.11.30"]
[WhiteClock "0:01:43"]
[BlackClock "0:01:35"]

1. d4 {[%clk 0:03:00]}  Nf6 {[%clk 0:02:57]} 2. Nf3 {[%clk 0:02:57]}  d6 {[%clk 0:02:57]} 3. c4 {[%clk 0:02:56]}  Nc6 {[%clk 0:02:57]} 4. Nc3 {[%clk 0:02:55]}  e5 {[%clk 0:02:57]} 5. d5 {[%clk 0:02:49]}  Ne7 {[%clk 0:02:57]} 6. e4 {[%clk 0:02:49]}  Ng6 {[%clk 0:02:57]} 7. Bd3 {[%clk 0:02:48]}  Be7 {[%clk 0:02:57]} 8. O-O {[%clk 0:02:48]}  O-O {[%clk 0:02:58]} 9. h3 {[%clk 0:02:40]}  h6 {[%clk 0:02:58]} 10. b4 {[%clk 0:02:39]}  a5 {[%clk 0:02:58]} 11. bxa5 {[%clk 0:02:38]}  Nh7 {[%clk 0:02:57]} 12. a4 {[%clk 0:02:36]}  Ng5 {[%clk 0:02:56]} 13. Nxg5 {[%clk 0:02:36]}  Bxg5 {[%clk 0:02:57]} 14. Be2 {[%clk 0:02:34]}  Bxc1 {[%clk 0:02:54]} 15. Qxc1 {[%clk 0:02:34]}  Nf4 {[%clk 0:02:50]} 16. Bg4 {[%clk 0:02:29]}  Qg5 {[%clk 0:01:42]} 17. g3 {[%clk 0:01:49]}  Bxg4 {[%clk 0:01:39]} 18. gxf4 {[%clk 0:01:44]}  exf4 {[%clk 0:01:39]} 19. hxg4 {[%clk 0:01:43]}  Qxg4+ {[%clk 0:01:39]} 20. Kh2 {[%clk 0:01:43]}  f3 {[%clk 0:01:35]} 0-1


[Site "https://www.chess.com"]

[Event "Titled Tuesday Blitz November 29 Late 2022"]
[White "Arnold, Ken"]
[Black "Martinez Reyes, Pedro Ramon"]
[WhiteFideId "2056836"]
[BlackFideId "3901807"]
[WhiteElo "2392"]
[BlackElo "2354"]
[Result "1-0"]
[Round "11"]
[TimeControl "180+1"]
[Date "2022.11.30"]
[WhiteClock "0:00:15"]
[BlackClock "0:02:08"]

1. e4 {[%clk 0:03:00]}  c5 {[%clk 0:02:56]} 2. Nf3 {[%clk 0:03:00]}  Nc6 {[%clk 0:02:56]} 3. Bb5 {[%clk 0:03:00]}  Na5 {[%clk 0:02:54]} 4. O-O {[%clk 0:02:58]}  a6 {[%clk 0:02:55]} 5. Be2 {[%clk 0:02:57]}  e6 {[%clk 0:02:55]} 6. d4 {[%clk 0:02:57]}  cxd4 {[%clk 0:02:56]} 7. Nxd4 {[%clk 0:02:56]}  d6 {[%clk 0:02:55]} 8. c4 {[%clk 0:02:56]}  Nf6 {[%clk 0:02:55]} 9. Nc3 {[%clk 0:02:55]}  Be7 {[%clk 0:02:56]} 10. b3 {[%clk 0:02:55]}  O-O {[%clk 0:02:56]} 11. Bb2 {[%clk 0:02:55]}  Rb8 {[%clk 0:02:56]} 12. Qd2 {[%clk 0:02:53]}  Bd7 {[%clk 0:02:56]} 13. Rfd1 {[%clk 0:02:51]}  Qc7 {[%clk 0:02:55]} 14. f3 {[%clk 0:02:49]}  b5 {[%clk 0:02:48]} 15. cxb5 {[%clk 0:02:49]}  axb5 {[%clk 0:02:49]} 16. Rac1 {[%clk 0:02:49]}  Qa7 {[%clk 0:02:46]} 17. Kh1 {[%clk 0:02:44]}  b4 {[%clk 0:02:46]} 18. Ncb5 {[%clk 0:02:39]}  Qb6 {[%clk 0:02:43]} 19. a4 {[%clk 0:02:29]}  bxa3 {[%clk 0:02:39]} 20. Bxa3 {[%clk 0:02:28]}  Nxb3 {[%clk 0:02:40]} 21. Nxb3 {[%clk 0:02:27]}  Bxb5 {[%clk 0:02:40]} 22. Bxb5 {[%clk 0:02:19]}  Qxb5 {[%clk 0:02:41]} 23. Nd4 {[%clk 0:02:16]}  Qa4 {[%clk 0:02:41]} 24. Nc6 {[%clk 0:01:48]}  Qxa3 {[%clk 0:02:37]} 25. Nxe7+ {[%clk 0:01:44]}  Kh8 {[%clk 0:02:37]} 26. Qxd6 {[%clk 0:01:41]}  Qxd6 {[%clk 0:02:36]} 27. Rxd6 {[%clk 0:01:41]}  Rfd8 {[%clk 0:02:36]} 28. Rxd8+ {[%clk 0:01:30]}  Rxd8 {[%clk 0:02:37]} 29. h4 {[%clk 0:01:29]}  h5 {[%clk 0:02:36]} 30. Rc7 {[%clk 0:01:26]}  Ne8 {[%clk 0:02:29]} 31. Ra7 {[%clk 0:01:16]}  Nd6 {[%clk 0:02:30]} 32. Nc6 {[%clk 0:01:14]}  Rc8 {[%clk 0:02:30]} 33. Ne5 {[%clk 0:01:13]}  f6 {[%clk 0:02:29]} 34. Ng6+ {[%clk 0:01:09]}  Kh7 {[%clk 0:02:28]} 35. Nf4 {[%clk 0:01:09]}  Rc1+ {[%clk 0:02:27]} 36. Kh2 {[%clk 0:01:08]}  Nb5 {[%clk 0:02:28]} 37. Re7 {[%clk 0:00:59]}  Nd4 {[%clk 0:02:28]} 38. Nxh5 {[%clk 0:00:52]}  Rc2 {[%clk 0:02:29]} 39. Nxf6+ {[%clk 0:00:38]}  Kg6 {[%clk 0:02:28]} 40. Ne8 {[%clk 0:00:37]}  Nxf3+ {[%clk 0:02:28]} 41. Kh3 {[%clk 0:00:35]}  Nd4 {[%clk 0:02:25]} 42. Rxg7+ {[%clk 0:00:33]}  Kh6 {[%clk 0:02:26]} 43. g4 {[%clk 0:00:28]}  Rc3+ {[%clk 0:02:20]} 44. Kg2 {[%clk 0:00:27]}  Rc2+ {[%clk 0:02:21]} 45. Kf1 {[%clk 0:00:26]}  Rc8 {[%clk 0:02:14]} 46. g5+ {[%clk 0:00:24]}  Kh5 {[%clk 0:02:14]} 47. Rh7+ {[%clk 0:00:21]}  Kg4 {[%clk 0:02:15]} 48. Nf6+ {[%clk 0:00:21]}  Kf3 {[%clk 0:02:15]} 49. Ke1 {[%clk 0:00:18]}  Nb3 {[%clk 0:02:13]} 50. Rd7 {[%clk 0:00:14]}  Rc1+ {[%clk 0:02:10]} 51. Rd1 {[%clk 0:00:14]}  Rc2 {[%clk 0:02:11]} 52. Rd3+ {[%clk 0:00:15]}  Kg2 {[%clk 0:02:08]} 53. Rxb3 {[%clk 0:00:15]} 1-0


[Site "https://www.chess.com"]

[Event "Titled Tuesday Blitz November 29 Late 2022"]
[White "Barria Zuniga, Daniel"]
[Black "Melian, Juan Sebastian"]
[WhiteFideId "3400816"]
[BlackFideId "3706575"]
[WhiteElo "2414"]
[BlackElo "2044"]
[Result "1-0"]
[Round "11"]
[TimeControl "180+1"]
[Date "2022.11.30"]
[WhiteClock "0:01:46"]
[BlackClock "0:00:26"]

1. d4 {[%clk 0:02:57]}  Nf6 {[%clk 0:02:57]} 2. c4 {[%clk 0:02:57]}  e6 {[%clk 0:02:57]} 3. Nc3 {[%clk 0:02:53]}  Bb4 {[%clk 0:02:57]} 4. a3 {[%clk 0:02:52]}  Bxc3+ {[%clk 0:02:55]} 5. bxc3 {[%clk 0:02:53]}  d5 {[%clk 0:02:41]} 6. cxd5 {[%clk 0:02:51]}  exd5 {[%clk 0:02:39]} 7. e3 {[%clk 0:02:47]}  O-O {[%clk 0:02:39]} 8. Bd3 {[%clk 0:02:46]}  c5 {[%clk 0:02:39]} 9. f3 {[%clk 0:02:44]}  b6 {[%clk 0:02:24]} 10. Ne2 {[%clk 0:02:43]}  Ba6 {[%clk 0:02:24]} 11. O-O {[%clk 0:02:41]}  Bxd3 {[%clk 0:02:14]} 12. Qxd3 {[%clk 0:02:42]}  Re8 {[%clk 0:02:15]} 13. Ng3 {[%clk 0:02:38]}  Nc6 {[%clk 0:02:14]} 14. Bb2 {[%clk 0:02:38]}  Qd7 {[%clk 0:01:52]} 15. Rad1 {[%clk 0:02:33]}  Rad8 {[%clk 0:01:46]} 16. e4 {[%clk 0:02:27]}  dxe4 {[%clk 0:01:32]} 17. fxe4 {[%clk 0:02:28]}  Ne5 {[%clk 0:01:32]} 18. Qe2 {[%clk 0:02:20]}  Ng6 {[%clk 0:01:25]} 19. e5 {[%clk 0:02:05]}  Qc7 {[%clk 0:00:55]} 20. Qf3 {[%clk 0:01:52]}  Nd5 {[%clk 0:00:44]} 21. Nf5 {[%clk 0:01:49]}  c4 {[%clk 0:00:25]} 22. Nd6 {[%clk 0:01:46]}  Rxd6 {[%clk 0:00:25]} 23. exd6 {[%clk 0:01:47]}  Qxd6 {[%clk 0:00:26]} 24. Qxf7+ {[%clk 0:01:46]} 1-0


[Site "https://www.chess.com"]

[Event "Titled Tuesday Blitz November 29 Late 2022"]
[White "Battlecruiser_Operational"]
[Black "Perez Torres, Nabi Isaias"]
[BlackFideId "5120373"]
[WhiteElo "2203"]
[BlackElo "1915"]
[Result "0-1"]
[Round "11"]
[TimeControl "180+1"]
[Date "2022.11.30"]
[WhiteClock "0:00:09"]
[BlackClock "0:00:18"]

1. d4 {[%clk 0:03:00]}  Nf6 {[%clk 0:02:59]} 2. c4 {[%clk 0:03:01]}  g6 {[%clk 0:03:00]} 3. Nc3 {[%clk 0:03:01]}  Bg7 {[%clk 0:03:00]} 4. e4 {[%clk 0:03:01]}  d6 {[%clk 0:03:01]} 5. Nf3 {[%clk 0:03:01]}  O-O {[%clk 0:03:02]} 6. Be2 {[%clk 0:03:02]}  e5 {[%clk 0:03:02]} 7. Be3 {[%clk 0:03:01]}  exd4 {[%clk 0:03:01]} 8. Nxd4 {[%clk 0:03:00]}  Re8 {[%clk 0:03:02]} 9. f3 {[%clk 0:02:57]}  Nc6 {[%clk 0:03:03]} 10. O-O {[%clk 0:02:52]}  Nh5 {[%clk 0:03:02]} 11. Nxc6 {[%clk 0:02:48]}  bxc6 {[%clk 0:03:03]} 12. Qd2 {[%clk 0:02:48]}  Rb8 {[%clk 0:02:40]} 13. Rad1 {[%clk 0:02:44]}  a5 {[%clk 0:02:07]} 14. b3 {[%clk 0:02:38]}  Be5 {[%clk 0:01:57]} 15. f4 {[%clk 0:02:30]}  Bg7 {[%clk 0:01:40]} 16. Bxh5 {[%clk 0:02:23]}  gxh5 {[%clk 0:01:41]} 17. e5 {[%clk 0:02:18]}  Bg4 {[%clk 0:01:37]} 18. Rde1 {[%clk 0:02:15]}  dxe5 {[%clk 0:01:36]} 19. Qxd8 {[%clk 0:02:11]}  Rbxd8 {[%clk 0:01:37]} 20. f5 {[%clk 0:01:56]}  h4 {[%clk 0:01:15]} 21. Bg5 {[%clk 0:01:50]}  Rd3 {[%clk 0:01:11]} 22. Ne4 {[%clk 0:01:43]}  h3 {[%clk 0:01:11]} 23. Nf2 {[%clk 0:01:25]}  hxg2 {[%clk 0:01:07]} 24. Kxg2 {[%clk 0:01:23]}  Bf3+ {[%clk 0:01:02]} 25. Kg3 {[%clk 0:01:20]}  Rc3 {[%clk 0:01:01]} 26. Bd2 {[%clk 0:01:01]}  Rc2 {[%clk 0:00:58]} 27. Bxa5 {[%clk 0:01:00]}  e4 {[%clk 0:00:53]} 28. Bxc7 {[%clk 0:00:56]}  Bd4 {[%clk 0:00:42]} 29. a4 {[%clk 0:00:33]}  Kh8 {[%clk 0:00:37]} 30. Nh3 {[%clk 0:00:11]}  Rg8+ {[%clk 0:00:32]} 31. Kh4 {[%clk 0:00:11]}  Bf6+ {[%clk 0:00:32]} 32. Ng5 {[%clk 0:00:10]}  Bxg5+ {[%clk 0:00:27]} 33. Kh3 {[%clk 0:00:10]}  Bg2+ {[%clk 0:00:20]} 34. Kg4 {[%clk 0:00:11]}  Bd8+ {[%clk 0:00:19]} 35. Kf4 {[%clk 0:00:10]}  Bxc7+ {[%clk 0:00:19]} 36. Ke3 {[%clk 0:00:09]}  Bxf1 {[%clk 0:00:18]} 0-1


[Site "https://www.chess.com"]

[Event "Titled Tuesday Blitz November 29 Late 2022"]
[White "Bogaudinov, Rushan"]
[Black "Janaszak, Dawid"]
[WhiteFideId "4129288"]
[BlackFideId "1119206"]
[WhiteElo "1997"]
[BlackElo "2226"]
[Result "0-1"]
[Round "11"]
[TimeControl "180+1"]
[Date "2022.11.30"]
[WhiteClock "0:00:04"]
[BlackClock "0:00:25"]

1. d4 {[%clk 0:01:56]}  Nf6 {[%clk 0:02:52]} 2. c4 {[%clk 0:01:56]}  c5 {[%clk 0:02:51]} 3. e3 {[%clk 0:01:54]}  g6 {[%clk 0:02:51]} 4. Nf3 {[%clk 0:01:54]}  Bg7 {[%clk 0:02:50]} 5. Be2 {[%clk 0:01:55]}  O-O {[%clk 0:02:50]} 6. O-O {[%clk 0:01:55]}  cxd4 {[%clk 0:02:50]} 7. Nxd4 {[%clk 0:01:55]}  d5 {[%clk 0:02:50]} 8. Nc3 {[%clk 0:01:54]}  dxc4 {[%clk 0:02:48]} 9. Bxc4 {[%clk 0:01:54]}  a6 {[%clk 0:02:49]} 10. a3 {[%clk 0:01:48]}  b5 {[%clk 0:02:45]} 11. Be2 {[%clk 0:01:48]}  Bb7 {[%clk 0:02:45]} 12. Bf3 {[%clk 0:01:48]}  Qb6 {[%clk 0:02:45]} 13. Bxb7 {[%clk 0:01:47]}  Qxb7 {[%clk 0:02:46]} 14. b4 {[%clk 0:01:37]}  Nbd7 {[%clk 0:02:39]} 15. Bb2 {[%clk 0:01:36]}  Ne5 {[%clk 0:02:40]} 16. Nb3 {[%clk 0:01:33]}  Rad8 {[%clk 0:02:33]} 17. Qe2 {[%clk 0:01:27]}  Nc4 {[%clk 0:02:30]} 18. Nc5 {[%clk 0:01:22]}  Qa8 {[%clk 0:02:29]} 19. Rac1 {[%clk 0:01:07]}  Rd2 {[%clk 0:02:28]} 20. Ba1 {[%clk 0:00:47]}  Rxe2 {[%clk 0:02:27]} 21. Nxe2 {[%clk 0:00:47]}  Ne4 {[%clk 0:02:24]} 22. a4 {[%clk 0:00:42]}  Bxa1 {[%clk 0:02:11]} 23. Rxa1 {[%clk 0:00:43]}  Qc6 {[%clk 0:01:59]} 24. Nd4 {[%clk 0:00:41]}  Qf6 {[%clk 0:01:58]} 25. axb5 {[%clk 0:00:39]}  axb5 {[%clk 0:01:58]} 26. Ra6 {[%clk 0:00:38]}  Ned6 {[%clk 0:01:38]} 27. Nxb5 {[%clk 0:00:36]}  Qb2 {[%clk 0:01:27]} 28. Nd4 {[%clk 0:00:28]}  Qxb4 {[%clk 0:01:21]} 29. Nd7 {[%clk 0:00:28]}  Rc8 {[%clk 0:01:10]} 30. h4 {[%clk 0:00:22]}  Nd2 {[%clk 0:01:10]} 31. Rfa1 {[%clk 0:00:20]}  N2e4 {[%clk 0:01:03]} 32. Ne5 {[%clk 0:00:18]}  Qc5 {[%clk 0:00:49]} 33. R6a5 {[%clk 0:00:14]}  Qc3 {[%clk 0:00:45]} 34. R5a3 {[%clk 0:00:12]}  Qd2 {[%clk 0:00:42]} 35. R3a2 {[%clk 0:00:11]}  Rc1+ {[%clk 0:00:43]} 36. Kh2 {[%clk 0:00:11]}  Qe1 {[%clk 0:00:41]} 37. Rxc1 {[%clk 0:00:10]}  Qxc1 {[%clk 0:00:42]} 38. Ndc6 {[%clk 0:00:04]}  Kf8 {[%clk 0:00:27]} 39. Ra8+ {[%clk 0:00:04]}  Kg7 {[%clk 0:00:28]} 40. Nxe7 {[%clk 0:00:04]}  Nf6 {[%clk 0:00:25]} 0-1


[Site "https://www.chess.com"]